[Event "Early-Titled-Tuesday-Blitz-October-03-2023"]
[Site "Chess.com"]
[Date "2023.10.03"]
[Round "4"]
[White "ljm509"]
[Black "TERMINATOR_PC"]
[Result "0-1"]
[WhiteElo "2326"]
[BlackElo "2614"]
[TimeControl "180+1"]
[EndTime "8:40:58 PDT"]
[Termination "TERMINATOR_PC won on time"]

1. e4 {[%clk 0:02:59.7]} 1... e5 {[%clk 0:02:53.9]} 2. Nf3 {[%clk 0:02:59.5]}
2... Nc6 {[%clk 0:02:53.7]} 3. Bc4 {[%clk 0:02:58.9]} 3... Nf6 {[%clk
0:02:53.7]} 4. d3 {[%clk 0:02:58.7]} 4... Bc5 {[%clk 0:02:53.5]} 5. O-O {[%clk
0:02:56.8]} 5... h6 {[%clk 0:02:52.4]} 6. a4 {[%clk 0:02:55.2]} 6... a6 {[%clk
0:02:52.1]} 7. c3 {[%clk 0:02:54.9]} 7... Ba7 {[%clk 0:02:51.1]} 8. Be3 {[%clk
0:02:51.8]} 8... d6 {[%clk 0:02:45.9]} 9. Bxa7 {[%clk 0:02:50.5]} 9... Rxa7
{[%clk 0:02:45.9]} 10. Nbd2 {[%clk 0:02:51.3]} 10... O-O {[%clk 0:02:45.4]} 11.
b4 {[%clk 0:02:48.9]} 11... Ra8 {[%clk 0:02:44.7]} 12. Re1 {[%clk 0:02:44]}
12... Be6 {[%clk 0:02:38.8]} 13. b5 {[%clk 0:02:32.4]} 13... axb5 {[%clk
0:02:34.8]} 14. axb5 {[%clk 0:02:32]} 14... Na5 {[%clk 0:02:25.7]} 15. Bxe6
{[%clk 0:02:28.1]} 15... fxe6 {[%clk 0:02:17.5]} 16. d4 {[%clk 0:02:17.5]} 16...
exd4 {[%clk 0:02:11.6]} 17. Nxd4 {[%clk 0:02:17.6]} 17... Re8 {[%clk 0:02:03.4]}
18. N2b3 {[%clk 0:02:14.7]} 18... Nc4 {[%clk 0:01:54.4]} 19. Qd3 {[%clk
0:02:07.3]} 19... Rxa1 {[%clk 0:01:50.8]} 20. Rxa1 {[%clk 0:02:06.6]} 20... Ne5
{[%clk 0:01:51.1]} 21. Qe2 {[%clk 0:01:59.2]} 21... Nf7 {[%clk 0:01:42.3]} 22.
Ra7 {[%clk 0:01:52.5]} 22... Qb8 {[%clk 0:01:13.2]} 23. Ra4 {[%clk 0:01:47.3]}
23... Qc8 {[%clk 0:01:10.2]} 24. f3 {[%clk 0:01:44.5]} 24... e5 {[%clk
0:01:08.9]} 25. Nf5 {[%clk 0:01:36.6]} 25... b6 {[%clk 0:01:08.5]} 26. Na1
{[%clk 0:01:06.3]} 26... Qe6 {[%clk 0:00:45.5]} 27. Nc2 {[%clk 0:00:58.6]} 27...
d5 {[%clk 0:00:34.3]} 28. Nb4 {[%clk 0:00:48.4]} 28... dxe4 {[%clk 0:00:28.3]}
29. fxe4 {[%clk 0:00:46.9]} 29... Qb3 {[%clk 0:00:27.5]} 30. Qc2 {[%clk
0:00:33.9]} 30... Qc4 {[%clk 0:00:22.5]} 31. Nd5 {[%clk 0:00:28.6]} 31... Qc5+
{[%clk 0:00:19.9]} 32. Qf2 {[%clk 0:00:25.1]} 32... Nxd5 {[%clk 0:00:19.3]} 33.
Qxc5 {[%clk 0:00:23.5]} 33... bxc5 {[%clk 0:00:20.2]} 34. exd5 {[%clk
0:00:23.3]} 34... e4 {[%clk 0:00:20.7]} 35. Kf2 {[%clk 0:00:22.5]} 35... Re5
{[%clk 0:00:20.5]} 36. Ne3 {[%clk 0:00:22]} 36... Nd6 {[%clk 0:00:20.8]} 37. c4
{[%clk 0:00:21]} 37... Re7 {[%clk 0:00:19.6]} 38. Ra7 {[%clk 0:00:20.7]} 38...
Kf7 {[%clk 0:00:20]} 39. Ke2 {[%clk 0:00:17.5]} 39... h5 {[%clk 0:00:20.2]} 40.
h3 {[%clk 0:00:17.4]} 40... Kg6 {[%clk 0:00:19.4]} 41. g3 {[%clk 0:00:17.1]}
41... Kg5 {[%clk 0:00:19.7]} 42. h4+ {[%clk 0:00:16.5]} 42... Kf6 {[%clk
0:00:19.9]} 43. Ra8 {[%clk 0:00:16.1]} 43... Ke5 {[%clk 0:00:20]} 44. Ra1 {[%clk
0:00:11.3]} 44... Rf7 {[%clk 0:00:19.8]} 45. Rd1 {[%clk 0:00:09.6]} 45... Rf3
{[%clk 0:00:19.7]} 46. Rg1 {[%clk 0:00:09.5]} 46... g6 {[%clk 0:00:14.4]} 47. g4
{[%clk 0:00:09.6]} 47... Kf4 {[%clk 0:00:12.9]} 48. Ng2+ {[%clk 0:00:07.3]}
48... Kxg4 {[%clk 0:00:12.5]} 49. Ne3+ {[%clk 0:00:06.3]} 49... Kf4 {[%clk
0:00:13]} 50. Rxg6 {[%clk 0:00:06.4]} 50... Rxe3+ {[%clk 0:00:13]} 51. Kd2
{[%clk 0:00:06.7]} 51... Nxc4+ {[%clk 0:00:12.4]} 52. Kc2 {[%clk 0:00:06.8]}
52... Rd3 {[%clk 0:00:12.9]} 53. Rc6 {[%clk 0:00:05.3]} 53... Rxd5 {[%clk
0:00:12.4]} 54. Rxc7 {[%clk 0:00:05.3]} 54... e3 {[%clk 0:00:12.9]} 55. Rf7+
{[%clk 0:00:04.6]} 55... Rf5 {[%clk 0:00:13.1]} 56. Rxf5+ {[%clk 0:00:03.9]}
56... Kxf5 {[%clk 0:00:13.7]} 57. Kd3 {[%clk 0:00:04.8]} 57... Nb6 {[%clk
0:00:14.1]} 58. Kxe3 {[%clk 0:00:04.8]} 58... Kg4 {[%clk 0:00:14.8]} 59. Ke4
{[%clk 0:00:05]} 59... Kxh4 {[%clk 0:00:14.7]} 60. Kf4 {[%clk 0:00:05.3]} 60...
c4 {[%clk 0:00:15]} 61. Ke4 {[%clk 0:00:04.5]} 61... Kg3 {[%clk 0:00:15.4]} 62.
Kd4 {[%clk 0:00:05.4]} 62... h4 {[%clk 0:00:15.8]} 63. Kc5 {[%clk 0:00:06.3]}
63... c3 {[%clk 0:00:16.3]} 64. Kxb6 {[%clk 0:00:06.4]} 64... c2 {[%clk
0:00:17]} 65. Ka7 {[%clk 0:00:06.8]} 65... c1=Q {[%clk 0:00:17.9]} 66. b6 {[%clk
0:00:07.5]} 66... Qb2 {[%clk 0:00:18.5]} 67. b7 {[%clk 0:00:08.4]} 67... Qxb7+
{[%clk 0:00:19.1]} 68. Kxb7 {[%clk 0:00:08.5]} 68... h3 {[%clk 0:00:20]} 69. Kc6
{[%clk 0:00:09.1]} 69... h2 {[%clk 0:00:20.9]} 70. Kd6 {[%clk 0:00:08.5]} 70...
h1=Q {[%clk 0:00:21.8]} 0-1

[Event "Early-Titled-Tuesday-Blitz-October-03-2023"]
[Site "Chess.com"]
[Date "2023.10.03"]
[Round "4"]
[White "FREDERICKtheMATE"]
[Black "DarZay"]
[Result "1-0"]
[WhiteElo "2610"]
[BlackElo "2217"]
[TimeControl "180+1"]
[EndTime "8:40:58 PDT"]
[Termination "FREDERICKtheMATE won on time"]

1. Nf3 {[%clk 0:03:00.9]} 1... Nf6 {[%clk 0:02:59.1]} 2. d4 {[%clk 0:03:01.2]}
2... d5 {[%clk 0:02:58.6]} 3. c4 {[%clk 0:03:01.4]} 3... e6 {[%clk 0:02:58.5]}
4. Nc3 {[%clk 0:03:01.6]} 4... Be7 {[%clk 0:02:58.4]} 5. Bf4 {[%clk 0:03:00.7]}
5... O-O {[%clk 0:02:55.6]} 6. e3 {[%clk 0:03:01.1]} 6... Ne4 {[%clk 0:02:54.9]}
7. Nxe4 {[%clk 0:02:58.9]} 7... dxe4 {[%clk 0:02:54.9]} 8. Nd2 {[%clk
0:02:59.4]} 8... f5 {[%clk 0:02:54.6]} 9. h3 {[%clk 0:02:52.9]} 9... c5 {[%clk
0:02:51.8]} 10. dxc5 {[%clk 0:02:50.7]} 10... Bxc5 {[%clk 0:02:51]} 11. a3
{[%clk 0:02:50.6]} 11... a5 {[%clk 0:02:50.4]} 12. Nb3 {[%clk 0:02:47.5]} 12...
Be7 {[%clk 0:02:46.5]} 13. Nd4 {[%clk 0:02:42.9]} 13... Nc6 {[%clk 0:02:42.7]}
14. Nxc6 {[%clk 0:02:41.2]} 14... bxc6 {[%clk 0:02:41.9]} 15. Be2 {[%clk
0:02:40.1]} 15... Qb6 {[%clk 0:02:29]} 16. Rb1 {[%clk 0:02:32]} 16... Rd8 {[%clk
0:02:24]} 17. Qc2 {[%clk 0:02:26.1]} 17... Bf6 {[%clk 0:02:12.6]} 18. c5 {[%clk
0:02:22.4]} 18... Qb7 {[%clk 0:02:09.7]} 19. Bc4 {[%clk 0:02:17]} 19... Kh8
{[%clk 0:02:08.9]} 20. Bd6 {[%clk 0:02:15]} 20... Be7 {[%clk 0:02:08.4]} 21.
Bxe7 {[%clk 0:02:07.5]} 21... Qxe7 {[%clk 0:02:07.7]} 22. b4 {[%clk 0:02:07.7]}
22... axb4 {[%clk 0:02:04.8]} 23. axb4 {[%clk 0:02:08.6]} 23... Ba6 {[%clk
0:02:01.2]} 24. Bxa6 {[%clk 0:02:04.5]} 24... Rxa6 {[%clk 0:02:00.7]} 25. O-O
{[%clk 0:02:05]} 25... Rda8 {[%clk 0:01:59]} 26. b5 {[%clk 0:02:01.7]} 26...
cxb5 {[%clk 0:01:55.7]} 27. Rxb5 {[%clk 0:02:02.6]} 27... h6 {[%clk 0:01:52]}
28. c6 {[%clk 0:01:59]} 28... Rc8 {[%clk 0:01:50.4]} 29. Rc1 {[%clk 0:01:56.9]}
29... Raxc6 {[%clk 0:01:46.8]} 30. Qxc6 {[%clk 0:01:55.4]} 30... Rxc6 {[%clk
0:01:46.7]} 31. Rxc6 {[%clk 0:01:55.9]} 31... Qd7 {[%clk 0:01:42.5]} 32. Rbb6
{[%clk 0:01:51.2]} 32... Qd1+ {[%clk 0:01:41.6]} 33. Kh2 {[%clk 0:01:51.3]}
33... Qe2 {[%clk 0:01:24.1]} 34. Kg3 {[%clk 0:01:48.2]} 34... e5 {[%clk
0:01:23.7]} 35. Rc8+ {[%clk 0:01:37.5]} 35... Kh7 {[%clk 0:01:23.4]} 36. Rf8
{[%clk 0:01:37.1]} 36... f4+ {[%clk 0:01:16]} 37. exf4 {[%clk 0:01:36.7]} 37...
exf4+ {[%clk 0:01:15.4]} 38. Rxf4 {[%clk 0:01:35.8]} 38... e3 {[%clk 0:01:14.2]}
39. Re6 {[%clk 0:01:25.3]} 39... Qe1 {[%clk 0:01:04.3]} 40. Rxe3 {[%clk
0:01:24.2]} 40... Qa5 {[%clk 0:01:03.5]} 41. Rf7 {[%clk 0:01:11.1]} 41... Qg5+
{[%clk 0:00:59.4]} 42. Kh2 {[%clk 0:01:10.1]} 42... Qh4 {[%clk 0:00:57.3]} 43.
Ree7 {[%clk 0:01:05.1]} 43... Kh8 {[%clk 0:00:49.7]} 44. g3 {[%clk 0:01:01.5]}
44... Qd4 {[%clk 0:00:47.9]} 45. h4 {[%clk 0:00:57]} 45... h5 {[%clk 0:00:46.3]}
46. Rf5 {[%clk 0:00:51.3]} 46... Qg4 {[%clk 0:00:42.8]} 47. Rf8+ {[%clk
0:00:46.2]} 47... Kh7 {[%clk 0:00:42.7]} 48. Rff7 {[%clk 0:00:46.2]} 48... Qd4
{[%clk 0:00:36.9]} 49. Rxg7+ {[%clk 0:00:45.5]} 49... Kh8 {[%clk 0:00:37.3]} 50.
Rgf7 {[%clk 0:00:45.4]} 50... Kg8 {[%clk 0:00:37.1]} 51. Rf5 {[%clk 0:00:44.8]}
51... Qb2 {[%clk 0:00:27.7]} 52. Re6 {[%clk 0:00:39.8]} 52... Kg7 {[%clk
0:00:23.6]} 53. Re4 {[%clk 0:00:34.4]} 53... Qc2 {[%clk 0:00:20.9]} 54. Ref4
{[%clk 0:00:33.9]} 54... Kg6 {[%clk 0:00:19.8]} 55. Rg5+ {[%clk 0:00:33]} 55...
Kh6 {[%clk 0:00:14.2]} 56. Rf6+ {[%clk 0:00:31.5]} 56... Kh7 {[%clk 0:00:14.2]}
57. Rxh5+ {[%clk 0:00:31.5]} 57... Kg7 {[%clk 0:00:14.3]} 58. Rf4 {[%clk
0:00:31.8]} 58... Kg6 {[%clk 0:00:13.6]} 59. Rg5+ {[%clk 0:00:32.2]} 59... Kh6
{[%clk 0:00:14]} 60. Rf6+ {[%clk 0:00:32]} 60... Kh7 {[%clk 0:00:14.1]} 61. Re5
{[%clk 0:00:30.2]} 61... Kg7 {[%clk 0:00:12.3]} 62. Rf4 {[%clk 0:00:29.1]} 62...
Kg6 {[%clk 0:00:11.1]} 63. h5+ {[%clk 0:00:27.4]} 63... Kh6 {[%clk 0:00:10.9]}
64. g4 {[%clk 0:00:26.2]} 64... Qc1 {[%clk 0:00:09.9]} 65. Rff5 {[%clk
0:00:25.5]} 65... Kg7 {[%clk 0:00:08.6]} 66. Re6 {[%clk 0:00:24.1]} 66... Qc7+
{[%clk 0:00:02.3]} 67. Kg2 {[%clk 0:00:22.5]} 67... Qb7+ {[%clk 0:00:01.8]} 68.
f3 {[%clk 0:00:21.4]} 68... Qb2+ {[%clk 0:00:01.5]} 69. Kg3 {[%clk 0:00:21.2]}
1-0

[Event "Early-Titled-Tuesday-Blitz-October-03-2023"]
[Site "Chess.com"]
[Date "2023.10.03"]
[Round "4"]
[White "MikeSailer"]
[Black "chesslh19"]
[Result "0-1"]
[WhiteElo "2147"]
[BlackElo "2324"]
[TimeControl "180+1"]
[EndTime "8:40:58 PDT"]
[Termination "chesslh19 won on time"]

1. d4 {[%clk 0:03:00]} 1... d5 {[%clk 0:03:00.1]} 2. Bf4 {[%clk 0:02:57.1]} 2...
Nf6 {[%clk 0:03:00.2]} 3. Nc3 {[%clk 0:02:51.8]} 3... c5 {[%clk 0:03:00]} 4. e4
{[%clk 0:02:50.6]} 4... Nxe4 {[%clk 0:02:57.8]} 5. Nxe4 {[%clk 0:02:49.8]} 5...
dxe4 {[%clk 0:02:58.7]} 6. dxc5 {[%clk 0:02:50.7]} 6... Qa5+ {[%clk 0:02:57.9]}
7. c3 {[%clk 0:02:48.6]} 7... Qxc5 {[%clk 0:02:58.2]} 8. Qa4+ {[%clk 0:02:48]}
8... Nc6 {[%clk 0:02:58.6]} 9. Qxe4 {[%clk 0:02:47.7]} 9... g6 {[%clk
0:02:58.9]} 10. Bc4 {[%clk 0:02:27.7]} 10... Bg7 {[%clk 0:02:49.1]} 11. Nf3
{[%clk 0:02:25.8]} 11... Bf5 {[%clk 0:02:46.3]} 12. Qe2 {[%clk 0:02:26]} 12...
O-O {[%clk 0:02:43.6]} 13. O-O {[%clk 0:02:25.7]} 13... Rad8 {[%clk 0:02:32]}
14. Rad1 {[%clk 0:02:12.6]} 14... Bg4 {[%clk 0:02:31.1]} 15. Bb3 {[%clk
0:02:06]} 15... Qh5 {[%clk 0:02:21]} 16. h3 {[%clk 0:01:54.3]} 16... Bxf3 {[%clk
0:02:20.9]} 17. Qxf3 {[%clk 0:01:54.9]} 17... Qxf3 {[%clk 0:02:21.4]} 18. gxf3
{[%clk 0:01:55.8]} 18... e5 {[%clk 0:02:16.2]} 19. Be3 {[%clk 0:01:55.5]} 19...
b6 {[%clk 0:02:07.5]} 20. Bd5 {[%clk 0:01:35.6]} 20... Ne7 {[%clk 0:00:43.4]}
21. Be4 {[%clk 0:01:32.7]} 21... f5 {[%clk 0:00:41]} 22. Bc2 {[%clk 0:01:32.6]}
22... Bf6 {[%clk 0:00:35.7]} 23. Bb3+ {[%clk 0:01:23.4]} 23... Kg7 {[%clk
0:00:35.7]} 24. a4 {[%clk 0:01:09.7]} 24... Nc6 {[%clk 0:00:32.7]} 25. Bd5
{[%clk 0:01:04.4]} 25... Ne7 {[%clk 0:00:27.7]} 26. Ba2 {[%clk 0:00:59.4]} 26...
Nc6 {[%clk 0:00:27.2]} 27. b4 {[%clk 0:00:55.6]} 27... e4 {[%clk 0:00:21.6]} 28.
fxe4 {[%clk 0:00:55.3]} 28... fxe4 {[%clk 0:00:22.5]} 29. b5 {[%clk 0:00:53.2]}
29... Ne5 {[%clk 0:00:21.3]} 30. Rxd8 {[%clk 0:00:39.4]} 30... Rxd8 {[%clk
0:00:19.5]} 31. Bd4 {[%clk 0:00:38.3]} 31... Nf3+ {[%clk 0:00:18.7]} 32. Kg2
{[%clk 0:00:37.1]} 32... Nxd4 {[%clk 0:00:13.3]} 33. cxd4 {[%clk 0:00:38]} 33...
Rxd4 {[%clk 0:00:13.4]} 34. Re1 {[%clk 0:00:25.3]} 34... Rd2 {[%clk 0:00:12.7]}
35. Bb1 {[%clk 0:00:22.2]} 35... Bd4 {[%clk 0:00:11.6]} 36. Bxe4 {[%clk
0:00:19.1]} 36... Rxf2+ {[%clk 0:00:10.4]} 37. Kg3 {[%clk 0:00:19.5]} 37... Ra2
{[%clk 0:00:08.9]} 38. Rd1 {[%clk 0:00:16.8]} 38... Be5+ {[%clk 0:00:08.3]} 39.
Kf3 {[%clk 0:00:15.5]} 39... Ra3+ {[%clk 0:00:08]} 40. Ke2 {[%clk 0:00:12.8]}
40... Rxa4 {[%clk 0:00:08.3]} 41. Rd7+ {[%clk 0:00:11.1]} 41... Kf6 {[%clk
0:00:08.5]} 42. Bd3 {[%clk 0:00:10.6]} 42... h5 {[%clk 0:00:04.4]} 43. Rd8
{[%clk 0:00:06.4]} 43... Ra3 {[%clk 0:00:03.8]} 44. Rf8+ {[%clk 0:00:05.7]}
44... Kg7 {[%clk 0:00:03.5]} 45. Re8 {[%clk 0:00:06.6]} 45... Bf6 {[%clk
0:00:03.5]} 46. Rc8 {[%clk 0:00:06.7]} 46... Ra2+ {[%clk 0:00:03.7]} 47. Kf3
{[%clk 0:00:07.2]} 47... Ra3 {[%clk 0:00:04.6]} 48. Ke4 {[%clk 0:00:07.3]} 48...
Ra4+ {[%clk 0:00:05]} 49. Kf3 {[%clk 0:00:07.8]} 49... Ra3 {[%clk 0:00:05.3]}
50. Ke2 {[%clk 0:00:08.5]} 50... Rc3 {[%clk 0:00:03.7]} 51. Rc7+ {[%clk
0:00:08.7]} 51... Rxc7 {[%clk 0:00:03.5]} 0-1

[Event "Early-Titled-Tuesday-Blitz-October-03-2023"]
[Site "Chess.com"]
[Date "2023.10.03"]
[Round "4"]
[White "Grossboss19"]
[Black "wqws"]
[Result "1-0"]
[WhiteElo "2522"]
[BlackElo "2654"]
[TimeControl "180+1"]
[EndTime "8:41:04 PDT"]
[Termination "Grossboss19 won by checkmate"]

1. d4 {[%clk 0:02:57.3]} 1... Nf6 {[%clk 0:02:59.8]} 2. e3 {[%clk 0:02:49]} 2...
g6 {[%clk 0:02:59.9]} 3. c4 {[%clk 0:02:48.8]} 3... Bg7 {[%clk 0:03:00.2]} 4.
Nc3 {[%clk 0:02:48.5]} 4... O-O {[%clk 0:03:00.9]} 5. Nf3 {[%clk 0:02:48.6]}
5... d6 {[%clk 0:02:59.2]} 6. b3 {[%clk 0:02:47.8]} 6... e5 {[%clk 0:02:56.2]}
7. Bb2 {[%clk 0:02:46.5]} 7... exd4 {[%clk 0:02:54.3]} 8. Nxd4 {[%clk
0:02:45.4]} 8... Nc6 {[%clk 0:02:54.1]} 9. Be2 {[%clk 0:02:44.3]} 9... h5 {[%clk
0:02:50.6]} 10. O-O {[%clk 0:02:44]} 10... Nxd4 {[%clk 0:02:50.2]} 11. Qxd4
{[%clk 0:02:43.2]} 11... Ng4 {[%clk 0:02:48.1]} 12. Qd2 {[%clk 0:02:42.5]} 12...
Qh4 {[%clk 0:02:45.9]} 13. h3 {[%clk 0:02:41.6]} 13... Nf6 {[%clk 0:02:41.9]}
14. Nb5 {[%clk 0:02:26.6]} 14... Ne4 {[%clk 0:02:39.6]} 15. Qc2 {[%clk
0:02:22.3]} 15... Bxb2 {[%clk 0:02:14.7]} 16. Qxb2 {[%clk 0:02:17.2]} 16... Bxh3
{[%clk 0:02:14.6]} 17. gxh3 {[%clk 0:01:41.8]} 17... Rae8 {[%clk 0:02:11.7]} 18.
Rad1 {[%clk 0:01:29.9]} 18... Qxh3 {[%clk 0:01:25]} 19. Nxc7 {[%clk 0:00:53]}
19... Re5 {[%clk 0:01:19.7]} 20. Rd5 {[%clk 0:00:50.6]} 20... Ng3 {[%clk
0:00:41.3]} 21. fxg3 {[%clk 0:00:41.8]} 21... Qxg3+ {[%clk 0:00:38.7]} 22. Kh1
{[%clk 0:00:41.8]} 22... Rxe3 {[%clk 0:00:35.7]} 23. Bf3 {[%clk 0:00:16.6]}
23... Rxf3 {[%clk 0:00:29.6]} 24. Rxf3 {[%clk 0:00:16.4]} 24... Qxf3+ {[%clk
0:00:30.5]} 25. Qg2 {[%clk 0:00:16.9]} 25... Qf6 {[%clk 0:00:26.2]} 26. Rd1
{[%clk 0:00:13.7]} 26... Rc8 {[%clk 0:00:20.7]} 27. Nd5 {[%clk 0:00:12.8]} 27...
Qe5 {[%clk 0:00:20.5]} 28. Rf1 {[%clk 0:00:09.1]} 28... Kg7 {[%clk 0:00:19.6]}
29. Qf3 {[%clk 0:00:07.7]} 29... f5 {[%clk 0:00:19.2]} 30. Qf2 {[%clk
0:00:05.3]} 30... Re8 {[%clk 0:00:18.5]} 31. Nf4 {[%clk 0:00:05]} 31... Qe4+
{[%clk 0:00:18.6]} 32. Qg2 {[%clk 0:00:05.1]} 32... Qxg2+ {[%clk 0:00:18.7]} 33.
Kxg2 {[%clk 0:00:05.5]} 33... Kh6 {[%clk 0:00:16.9]} 34. Rd1 {[%clk 0:00:05.6]}
34... Kg5 {[%clk 0:00:15.8]} 35. Nh3+ {[%clk 0:00:05]} 35... Kg4 {[%clk
0:00:15.3]} 36. Rd4+ {[%clk 0:00:04.9]} 36... Re4 {[%clk 0:00:15]} 37. Nf2+
{[%clk 0:00:04]} 37... Kf4 {[%clk 0:00:14.8]} 38. Nxe4 {[%clk 0:00:04.9]} 38...
fxe4 {[%clk 0:00:15.7]} 39. Rxd6 {[%clk 0:00:05.6]} 39... g5 {[%clk 0:00:16]}
40. Rf6+ {[%clk 0:00:05.8]} 40... Ke5 {[%clk 0:00:15.8]} 41. Rh6 {[%clk
0:00:06.1]} 41... h4 {[%clk 0:00:15.9]} 42. Kf2 {[%clk 0:00:07]} 42... Kf4
{[%clk 0:00:16.1]} 43. Rf6+ {[%clk 0:00:06.6]} 43... Kg4 {[%clk 0:00:16.2]} 44.
Kg2 {[%clk 0:00:05.8]} 44... h3+ {[%clk 0:00:16.5]} 45. Kf2 {[%clk 0:00:05.5]}
45... Kh4 {[%clk 0:00:14.8]} 46. Rh6+ {[%clk 0:00:05]} 46... Kg4 {[%clk
0:00:15.1]} 47. c5 {[%clk 0:00:04.9]} 47... a5 {[%clk 0:00:12.9]} 48. a3 {[%clk
0:00:04.6]} 48... Kf4 {[%clk 0:00:13.1]} 49. Rf6+ {[%clk 0:00:03.1]} 49... Ke5
{[%clk 0:00:13.2]} 50. Rh6 {[%clk 0:00:02.6]} 50... g4 {[%clk 0:00:12.8]} 51.
Kg3 {[%clk 0:00:01.4]} 51... e3 {[%clk 0:00:12.5]} 52. Rh8 {[%clk 0:00:01.9]}
52... Kd4 {[%clk 0:00:11.6]} 53. Re8 {[%clk 0:00:02.5]} 53... Kd3 {[%clk
0:00:10.5]} 54. b4 {[%clk 0:00:02.7]} 54... axb4 {[%clk 0:00:10]} 55. axb4
{[%clk 0:00:03.6]} 55... e2 {[%clk 0:00:10.5]} 56. b5 {[%clk 0:00:04.1]} 56...
Kd2 {[%clk 0:00:10.7]} 57. c6 {[%clk 0:00:04.4]} 57... bxc6 {[%clk 0:00:09.8]}
58. bxc6 {[%clk 0:00:05.3]} 58... e1=Q+ {[%clk 0:00:10.1]} 59. Rxe1 {[%clk
0:00:05.9]} 59... Kxe1 {[%clk 0:00:11]} 60. c7 {[%clk 0:00:05.8]} 60... h2
{[%clk 0:00:11.3]} 61. Kg2 {[%clk 0:00:04.3]} 61... h1=Q+ {[%clk 0:00:10.2]} 62.
Kxh1 {[%clk 0:00:04.6]} 62... Kf2 {[%clk 0:00:11.1]} 63. c8=Q {[%clk 0:00:04.9]}
63... g3 {[%clk 0:00:12]} 64. Qc6 {[%clk 0:00:05]} 64... g2+ {[%clk 0:00:12.9]}
65. Qxg2+ {[%clk 0:00:05.6]} 65... Ke3 {[%clk 0:00:13.8]} 66. Kh2 {[%clk
0:00:06]} 66... Kd4 {[%clk 0:00:14.7]} 67. Kh3 {[%clk 0:00:06.9]} 67... Ke5
{[%clk 0:00:15.6]} 68. Qg4 {[%clk 0:00:07.8]} 68... Kf6 {[%clk 0:00:16]} 69. Kh4
{[%clk 0:00:08.7]} 69... Ke7 {[%clk 0:00:16.5]} 70. Kh5 {[%clk 0:00:09.6]} 70...
Kf8 {[%clk 0:00:17.2]} 71. Qg6 {[%clk 0:00:10.5]} 71... Ke7 {[%clk 0:00:18.1]}
72. Kg5 {[%clk 0:00:10.8]} 72... Kd7 {[%clk 0:00:18.5]} 73. Kf5 {[%clk 0:00:11]}
73... Kc7 {[%clk 0:00:19.4]} 74. Ke5 {[%clk 0:00:11.6]} 74... Kd8 {[%clk
0:00:20.3]} 75. Qf7 {[%clk 0:00:10.9]} 75... Kc8 {[%clk 0:00:20.7]} 76. Kd6
{[%clk 0:00:11.8]} 76... Kb8 {[%clk 0:00:21.2]} 77. Kc6 {[%clk 0:00:12.5]} 77...
Ka8 {[%clk 0:00:21.5]} 78. Qb7# {[%clk 0:00:12.2]} 1-0